bitfinex/quotes_SOLUSD_20250626
["timestamp","ask_amount","ask_price","bid_price","bid_amount"]
[1750904139521,5.5243161,145.98,145.93,34.4843161]
[1750904140222,5.5243161,145.98,145.93,41.33651529]
[1750904140427,5.5243161,145.94,145.9,49.24314886]
[1750904140597,5.5243161,145.94,145.9,54.76746496]
[1750904141101,5.5243161,145.94,145.9,61.62130956]
[1750904141802,26.0,145.97,145.9,61.62130956]
[1750904142003,5.5243161,145.94,145.9,61.62130956]
[1750904142208,5.5243161,145.94,145.9,32.68130956]
[1750904142415,5.5243161,145.94,145.9,61.62130956]
[1750904142615,5.5243161,145.93,145.9,30.5935]
[1750904143131,5.5243161,145.93,145.9,37.44749866]
[1750904144808,5.5243161,145.94,145.9,37.44749866]
[1750904145410,5.5243161,145.93,145.9,30.5935]
[1750904145618,5.5243161,145.93,145.9,37.44749169]
[1750904151035,5.5243161,145.93,145.9,8.50749169]
[1750904151229,5.5243161,145.93,145.9,37.44749169]
[1750904151624,26.0,145.94,145.9,42.97180779]
[1750904152020,31.5243161,145.94,145.9,37.44749169]
[1750904152233,31.5243161,145.94,145.9,35.79399169]
[1750904152834,5.5243161,145.93,145.9,28.94]
[1750904153505,26.0,145.94,145.9,35.79400506]
[1750904153705,31.5243161,145.97,145.92,5.5243161]
[1750904154701,31.5243161,145.97,145.93,28.92]
[1750904154912,5.5243161,145.96,145.93,28.92]
[1750904156039,5.5243161,145.96,145.93,35.77253103]
[1750904156214,31.5243161,145.97,145.93,35.77253103]
[1750904156534,26.0,145.97,145.93,41.29684713]
[1750904156918,152.0643161,145.99,145.94,5.5243161]
[1750904157517,5.5243161,145.98,145.93,41.29684713]
[1750904159611,5.5243161,145.98,145.93,35.77253103]
[1750904159813,5.5243161,145.96,145.93,28.92]
[1750904160315,26.0,145.96,145.93,28.92]
[1750904160514,5.5243161,145.95,145.93,28.92]
[1750904161423,5.5243161,145.94,145.9,28.92]
[1750904161627,5.5243161,145.93,145.9,35.77386396]
[1750904164538,5.5243161,145.92,145.9,28.92]
[1750904164923,5.5243161,145.91,145.87,8.56385464]
[1750904165146,5.10078308,145.95,145.88,28.92]
[1750904165353,5.5243161,145.91,145.88,28.92]
[1750904166352,5.5243161,145.91,145.88,35.77487887]
[1750904166533,5.5243161,145.91,145.87,8.42173492]
[1750904166736,5.5243161,145.91,145.88,28.92]
[1750904167154,5.5243161,145.93,145.88,34.4443161]
[1750904167454,5.5243161,145.94,145.89,5.5243161]
[1750904167949,5.5243161,145.94,145.9,6.85400959]
[1750904168142,26.0,145.94,145.91,34.4443161]
[1750904168341,5.5243161,145.95,145.91,34.4443161]
[1750904168546,5.5243161,145.94,145.91,28.92]
[1750904168732,5.5243161,145.93,145.89,54.42400163]
[1750904168929,5.5243161,145.92,145.89,54.42400163]
[1750904169159,5.5243161,145.92,145.89,28.92]
[1750904169346,5.5243161,145.92,145.89,35.77439062]
[1750904171460,5.5243161,145.92,145.89,28.92]
[1750904172042,5.5243161,145.92,145.89,28.9]
[1750904172236,5.5243161,145.91,145.89,28.9]
[1750904174443,31.5243161,145.92,145.89,28.9]
[1750904176060,31.5243161,145.92,145.89,35.75447227]
[1750904176255,31.5243161,145.92,145.89,28.9]
[1750904176640,5.5243161,145.92,145.89,35.75441646]
[1750904176845,31.5243161,145.93,145.89,35.75441646]
[1750904177547,5.5243161,145.96,145.91,5.5243161]
[1750904177769,10.64073307,145.96,145.92,34.4243161]
[1750904177973,10.64073307,145.96,145.92,41.27723358]
[1750904180266,5.11641697,145.96,145.92,41.27723358]
[1750904180505,152.0243161,145.97,145.92,41.27723358]
[1750904181969,152.0243161,145.97,145.92,35.75291748]
[1750904182179,5.5243161,145.96,145.92,35.75291748]
[1750904182552,5.5243161,145.95,145.92,35.75291748]
[1750904183073,5.5243161,145.94,145.92,28.9]
[1750904183769,5.5243161,145.95,145.92,35.7530317]
[1750904183956,10.64305003,145.96,145.92,35.7530317]
[1750904189476,5.5243161,145.93,145.88,12.37926537]
[1750904189776,5.5243161,145.92,145.89,28.88]
[1750904190751,5.5243161,145.92,145.87,25.74036496]
[1750904190954,5.5243161,145.88,145.87,0.02]
[1750904194079,5.5243161,145.89,145.87,0.02]
[1750904195573,26.0,145.89,145.87,0.02]
[1750904195865,5.5243161,145.88,145.87,0.02]
[1750904197871,26.0,145.89,145.87,0.02]
[1750904198066,26.0,145.9,145.87,0.02]
[1750904198774,31.5243161,145.9,145.87,0.02]
[1750904202868,5.5243161,145.91,145.87,0.02]
[1750904203173,5.5243161,145.91,145.87,5.5443161]
[1750904203388,5.5243161,145.92,145.87,5.5443161]
[1750904203686,5.5243161,145.91,145.87,5.5443161]
[1750904204589,5.5243161,145.91,145.87,18.81181043]
[1750904204781,5.5243161,145.91,145.87,25.66682721]
[1750904205868,5.5243161,145.91,145.87,31.19114331]
[1750904206270,5.5243161,145.91,145.87,25.66682721]
[1750904206472,5.5243161,145.9,145.87,0.02]
[1750904207083,5.5243161,145.89,145.87,0.02]
[1750904207286,5.5243161,145.89,145.87,28.88]
[1750904208975,5.5243161,145.88,145.87,0.02]
[1750904211692,31.5243161,145.89,145.87,0.02]
[1750904214279,0.04,145.96,145.9,0.42648471]
[1750904214612,0.04,145.96,145.93,5.5243161]
[1750904215386,0.04,145.96,145.92,5.5243161]
[1750904215792,5.5643161,145.96,145.92,5.5243161]
[1750904215998,5.5243161,145.95,145.91,28.86]
[1750904217187,0.04,145.96,145.91,28.86]
[1750904217496,5.5243161,145.95,145.91,28.86]
[1750904217791,5.5243161,145.93,145.91,28.86]
[1750904218390,5.5243161,145.92,145.91,28.86]
[1750904218581,5.5243161,145.92,145.88,6.85483758]
[1750904218785,5.5243161,145.92,145.89,28.84]
[1750904218993,5.5243161,145.93,145.89,28.84]
[1750904219195,5.5243161,145.93,145.89,35.69430328]
[1750904220402,5.5243161,145.92,145.89,28.84]
[1750904221299,5.5243161,145.92,145.88,12.3792195]
[1750904221300,5.5243161,145.92,145.88,6.8549034]
[1750904221493,5.5243161,145.92,145.88,35.6949034]
[1750904221981,5.5243161,145.91,145.88,28.84]
[1750904222188,5.5243161,145.89,145.88,28.84]
[1750904222791,5.5243161,145.89,145.87,0.02]
[1750904223098,5.5243161,145.9,145.87,35.71537236]
[1750904226481,5.5243161,145.89,145.87,28.86]
[1750904227512,5.5243161,145.9,145.87,28.86]
[1750904227879,5.5243161,145.9,145.87,28.84]
[1750904228192,26.0,145.92,145.87,28.84]
[1750904228401,5.5243161,145.9,145.87,28.84]
[1750904228586,5.5243161,145.89,145.87,28.84]
[1750904229808,5.5243161,145.9,145.87,28.84]
[1750904232209,5.5243161,145.88,145.87,0.02]
[1750904237989,10.64433183,145.88,145.87,0.02]
[1750904238189,5.5243161,145.88,145.87,0.02]
[1750904238721,31.12001573,145.89,145.87,0.02]
[1750904238722,5.5243161,145.89,145.87,0.02]
[1750904240898,5.11893676,145.9,145.87,0.02]
[1750904241122,178.0243161,145.91,145.87,0.02]
[1750904241830,172.5,145.91,145.88,34.3243161]
[1750904242616,172.5,145.91,145.89,5.5243161]
[1750904242916,172.5,145.91,145.9,6.85400959]
[1750904243113,26.0,145.91,145.9,6.85400959]
[1750904243510,26.0,145.91,145.89,12.37870739]
[1750904243711,26.0,145.91,145.89,6.85439129]
[1750904244308,5.11672781,145.94,145.9,5.5243161]
[1750904244495,12.1043161,145.96,145.91,5.5243161]
[1750904244815,12.1043161,145.96,145.92,34.3243161]
[1750904244816,5.5643161,145.96,145.92,34.3243161]
[1750904245012,5.5643161,145.96,145.92,35.65301953]
[1750904246400,10.67999694,145.96,145.92,35.65301953]
[1750904246598,26.0,145.95,145.92,35.65301953]
[1750904246804,10.67999694,145.96,145.92,35.65301953]
[1750904247006,5.5643161,145.96,145.92,35.65301953]
[1750904247412,5.5643161,145.96,145.92,28.8]
[1750904247606,31.5243161,145.95,145.92,28.8]
[1750904249721,5.5243161,145.93,145.89,28.8]
[1750904249907,31.5243161,145.93,145.89,28.8]
[1750904250822,31.5243161,145.93,145.89,35.6543615]
[1750904252809,5.5243161,145.94,145.89,41.1786776]
[1750904253600,5.5243161,145.94,145.9,5.5243161]
[1750904254708,5.5243161,145.94,145.91,6.85353985]
[1750904254908,31.5643161,145.96,145.91,12.37785595]
[1750904255215,5.5643161,145.96,145.92,34.3043161]
[1750904256907,0.04,145.96,145.93,6.85260056]
[1750904257739,5.5643161,145.96,145.93,6.85260056]
[1750904258828,0.04,145.96,145.93,6.85260056]
[1750904259926,0.04,145.96,145.93,12.37691666]
[1750904260432,0.04,145.96,145.95,5.5243161]
[1750904260627,0.04,145.96,145.95,53.36044967]
[1750904261239,0.04,145.96,145.95,60.21211119]
[1750904266644,0.04,145.96,145.95,54.68779509]
[1750904266832,0.04,145.96,145.95,59.92778805]
[1750904270959,0.04,145.96,145.95,54.40347195]
[1750904271257,0.04,145.96,145.94,35.59195302]
[1750904272038,0.04,145.96,145.91,17.1334524]
[1750904272354,0.04,145.96,145.93,5.5243161]
[1750904272521,0.04,145.96,145.94,18.79181043]
[1750904272719,0.04,145.96,145.95,28.74]
[1750904273927,0.04,145.96,145.95,35.59166152]
[1750904276064,0.04,145.96,145.95,59.90778805]
[1750904276239,0.04,145.96,145.95,60.19211119]
[1750904278163,0.04,145.96,145.95,54.66779509]
[1750904278464,0.04,145.96,145.95,60.19211119]
[1750904280763,5.5643161,145.96,145.91,12.37785595]
[1750904280935,5.5243161,145.95,145.92,18.64964886]
[1750904281261,0.04,145.96,145.88,23.61700232]
[1750904281262,5.5243161,145.93,145.88,6.48]
[1750904281559,5.5243161,145.89,145.87,28.74]
[1750904281758,5.5243161,145.92,145.87,28.74]
[1750904281960,5.5243161,145.89,145.87,28.74]
[1750904283766,5.5243161,145.9,145.87,28.74]
[1750904284768,5.5243161,145.9,145.88,28.72]
[1750904284970,5.5243161,145.91,145.88,28.72]
[1750904286651,5.5243161,145.9,145.88,28.72]
[1750904288175,5.5243161,145.91,145.88,28.72]
[1750904288978,31.5243161,145.9,145.87,0.02]
[1750904289164,5.5243161,145.9,145.89,28.72]
[1750904289472,31.5243161,145.91,145.89,28.72]
[1750904291672,5.5243161,145.92,145.89,28.72]
[1750904292569,5.5243161,145.92,145.89,35.57441088]
[1750904295390,5.5243161,145.92,145.89,28.72]
[1750904295554,5.5243161,145.9,145.87,0.02]
[1750904295751,5.5243161,145.88,145.87,0.02]
[1750904296990,11.06243666,145.88,145.87,0.02]
[1750904297162,5.5243161,145.88,145.87,0.02]
[1750904297354,31.5243161,145.88,145.87,0.02]
[1750904299264,152.0243161,145.91,145.87,0.02]
[1750904299466,5.5243161,145.91,145.87,5.5443161]
[1750904299763,5.5243161,145.91,145.87,0.02]
[1750904300066,5.5243161,145.9,145.87,0.02]
[1750904301391,5.5243161,145.93,145.88,5.5243161]
[1750904301580,152.0243161,145.94,145.89,34.2443161]
[1750904301790,5.5243161,145.94,145.9,5.5243161]
[1750904302803,5.5243161,145.94,145.9,12.37796228]
[1750904304379,5.5243161,145.93,145.9,6.85364618]
[1750904304578,1.682,145.95,145.9,6.85364618]
[1750904304579,26.0,145.94,145.9,6.85364618]
[1750904304877,5.5243161,145.93,145.9,6.85364618]
[1750904306598,31.5243161,145.94,145.9,6.85364618]
[1750904307898,26.0,145.94,145.9,6.85364618]
[1750904308600,5.5243161,145.91,145.89,28.72]
[1750904308791,5.5243161,145.9,145.87,35.57532904]
[1750904308982,5.5243161,145.9,145.87,28.72]
[1750904309183,32.85226037,145.94,145.87,28.72]
[1750904309184,5.5243161,145.89,145.87,28.72]
[1750904309701,5.5243161,145.9,145.87,28.72]
[1750904310089,5.5243161,145.89,145.87,28.72]
[1750904310996,5.5243161,145.89,145.87,0.02]
[1750904311190,0.28432314,145.93,145.87,0.02]
[1750904311391,5.5243161,145.88,145.87,0.02]
[1750904312385,0.28432314,145.88,145.87,0.02]
[1750904312606,5.80863924,145.88,145.87,0.02]
[1750904318828,5.5243161,145.88,145.87,0.02]
[1750904320122,146.5,145.89,145.87,0.02]
[1750904320417,152.0243161,145.89,145.87,0.02]
[1750904320625,5.5243161,145.88,145.87,0.02]
[1750904322516,5.5243161,145.9,145.87,0.02]
[1750904322715,5.5243161,145.91,145.87,0.02]
[1750904323115,5.5243161,145.91,145.87,5.5443161]
[1750904323322,26.0,145.92,145.88,6.85494927]
[1750904323323,31.5243161,145.92,145.88,6.85494927]
[1750904323618,31.5243161,145.92,145.88,35.55494927]
[1750904325430,36.63348333,145.92,145.88,35.55494927]
[1750904325615,31.5243161,145.92,145.88,35.55494927]
[1750904325814,5.5243161,145.91,145.88,35.55494927]
[1750904327424,5.5243161,145.9,145.88,28.7]
[1750904328718,5.5243161,145.89,145.88,28.7]
[1750904329235,5.5243161,145.9,145.88,28.7]
[1750904330944,31.5243161,145.92,145.88,41.0792028]
[1750904332637,26.0,145.92,145.88,41.0792028]
[1750904334222,31.5243161,145.92,145.88,41.0792028]
[1750904334420,31.5243161,145.92,145.88,35.5548867]
[1750904334738,0.04,145.94,145.89,5.5243161]
[1750904334917,0.04,145.94,145.89,24.70624886]
[1750904335232,0.04,145.94,145.91,5.5243161]
[1750904335419,0.04,145.94,145.91,41.05755794]
[1750904336526,0.04,145.94,145.91,34.2043161]
[1750904336718,0.04,145.94,145.91,28.68]
[1750904337844,5.5643161,145.94,145.91,28.68]
[1750904338752,5.5243161,145.92,145.91,28.68]
[1750904338957,5.5243161,145.92,145.88,28.66]
[1750904339252,31.5243161,145.92,145.88,28.66]
[1750904339749,31.5243161,145.92,145.88,41.03900677]
[1750904340322,26.0,145.92,145.88,41.03900677]
[1750904340523,5.5243161,145.93,145.88,41.03900677]
[1750904341025,0.04,145.94,145.88,41.03900677]
[1750904341229,5.5243161,145.92,145.88,41.03900677]
[1750904341756,5.5243161,145.93,145.88,41.03900677]
[1750904341969,0.04,145.94,145.9,5.5243161]
[1750904342267,0.04,145.94,145.92,5.5243161]
[1750904342479,5.5643161,145.94,145.91,28.66]
[1750904342847,0.04,145.94,145.91,34.1843161]
[1750904343243,0.04,145.94,145.91,28.66]
[1750904344077,0.04,145.94,145.92,5.5243161]
[1750904345045,0.04,145.94,145.92,12.37694772]
[1750904345539,0.04,145.94,145.93,5.5243161]
[1750904345743,0.04,145.94,145.93,24.17396496]
[1750904347970,0.04,145.94,145.93,31.02656552]
[1750904348345,0.04,145.94,145.93,25.50224942]
[1750904349158,0.04,145.94,145.93,31.02656552]
[1750904350859,0.04,145.94,145.93,59.66656552]
[1750904351372,0.04,145.94,145.93,35.49260056]
[1750904359659,0.04,145.94,145.93,41.01691666]
[1750904359985,0.04,145.94,145.93,59.66656552]
[1750904362383,0.04,145.94,145.93,54.28441099]
[1750904362584,0.04,145.94,145.93,54.14224942]
[1750904362880,0.04,145.94,145.92,6.85294025]
[1750904363058,5.5243161,145.93,145.9,6.85400959]
[1750904363260,5.5243161,145.93,145.91,28.62]
[1750904364064,5.5643161,145.94,145.91,35.47351354]
[1750904365779,5.5643161,145.94,145.92,28.62]
[1750904366285,5.5243161,145.93,145.91,28.62]
[1750904366585,5.5243161,145.93,145.89,25.72546496]
[1750904366784,5.5243161,145.92,145.9,28.62]
[1750904367078,31.5243161,145.93,145.9,28.62]
[1750904367375,26.0,145.93,145.9,28.62]
[1750904367679,31.5243161,145.93,145.9,28.62]
[1750904368781,5.5243161,145.92,145.87,18.66964886]
[1750904369093,5.5243161,145.88,145.87,0.02]
[1750904372490,5.80863924,145.88,145.87,0.02]
[1750904373183,31.80863924,145.88,145.87,0.02]
[1750904377386,11.2191522,145.88,145.87,0.02]
[1750904377593,157.7191522,145.88,145.87,0.02]
[1750904377794,169.67454595,145.88,145.87,0.02]
[1750904378771,23.17454595,145.88,145.87,0.02]
[1750904379095,18.07410147,145.88,145.87,0.02]
[1750904379392,44.07410147,145.88,145.87,0.02]
[1750904379580,18.07410147,145.88,145.87,0.02]
[1750904379779,44.21626304,145.88,145.87,0.02]
[1750904380081,24.59626304,145.88,145.87,0.02]
[1750904380391,26.12606304,145.88,145.87,0.02]
[1750904381292,13.71843924,145.88,145.87,0.02]
[1750904381492,13.4341161,145.88,145.87,0.02]
[1750904381794,13.71843924,145.88,145.87,0.02]
[1750904382997,11.9043161,145.88,145.87,0.02]
[1750904384087,5.5243161,145.88,145.87,0.02]
[1750904388600,31.5243161,145.88,145.87,0.02]
[1750904388896,5.5243161,145.88,145.87,0.02]
[1750904389109,5.5243161,145.89,145.87,0.02]
[1750904389396,31.5243161,145.88,145.87,0.02]
[1750904394777,31.80863924,145.88,145.87,0.02]
[1750904395001,26.0,145.84,145.82,0.02]
[1750904395203,5.5243161,145.83,145.82,0.02]
[1750904401510,12.66593883,145.83,145.82,0.02]
[1750904401688,146.92648471,145.82,145.81,0.02]
[1750904402000,26.0,145.8,145.79,0.02]
[1750904402207,31.5243161,145.8,145.79,0.02]
[1750904403279,38.80951137,145.8,145.79,0.02]
[1750904403484,26.0,145.77,145.76,0.02]
[1750904403694,31.5243161,145.77,145.76,0.02]
[1750904414918,31.80863924,145.77,145.76,0.02]
[1750904415222,37.33295534,145.77,145.76,0.02]
[1750904415590,44.19307745,145.77,145.76,0.02]
[1750904415795,37.33295534,145.77,145.76,0.02]
[1750904416202,44.19307745,145.77,145.76,0.02]
[1750904416405,44.19307745,145.77,145.74,1.27232588]
[1750904416406,0.42648471,145.76,145.74,1.27232588]
[1750904416602,26.0,145.72,145.71,0.02]
[1750904416894,38.31080081,145.72,145.71,0.02]
[1750904417111,43.40621918,145.72,145.71,0.02]
[1750904418116,50.26869516,145.72,145.71,0.02]
[1750904418508,0.28432314,145.71,145.69,0.02]
[1750904418717,5.5243161,145.7,145.69,0.02]
[1750904420520,31.5243161,145.7,145.69,0.02]
[1750904420748,6.36,145.72,145.69,0.02]
[1750904420908,5.5243161,145.71,145.69,0.02]
[1750904421515,5.5243161,145.74,145.69,5.5443161]
[1750904421711,5.5243161,145.75,145.71,5.5243161]
[1750904422026,5.5243161,145.76,145.71,5.5243161]
[1750904422631,5.5243161,145.76,145.71,12.38683094]
[1750904422800,31.5243161,145.75,145.71,12.38683094]
[1750904423722,31.5243161,145.75,145.7,12.38767659]
[1750904423924,5.5243161,145.74,145.7,12.38767659]
[1750904424221,26.0,145.75,145.7,12.38767659]
[1750904424410,5.5243161,145.74,145.7,12.38767659]
[1750904424617,31.5243161,145.75,145.7,12.38767659]
[1750904424911,31.5243161,145.75,145.7,6.86336049]
[1750904425224,31.5243161,145.75,145.71,5.5243161]
[1750904425432,5.5243161,145.76,145.72,5.5243161]
[1750904426829,5.5243161,145.77,145.72,12.38675761]
[1750904427329,5.5243161,145.76,145.72,12.38675761]
[1750904427725,5.5243161,145.75,145.7,12.38763338]
[1750904428337,5.5243161,145.75,145.71,5.5243161]
[1750904428505,32.36,145.78,145.71,5.5243161]
[1750904428711,5.5243161,145.76,145.71,12.38707442]
[1750904432321,5.5243161,145.75,145.71,12.38707442]
[1750904432833,5.5243161,145.75,145.71,6.86275832]
[1750904433034,32.36,145.78,145.71,12.38707442]
[1750904433206,5.5243161,145.75,145.71,12.38707442]
[1750904434836,5.5243161,145.75,145.71,6.86275832]
[1750904435015,5.5243161,145.73,145.7,6.86341798]
[1750904435531,5.5243161,145.73,145.69,12.40819227]
[1750904436118,5.5243161,145.73,145.69,6.88387617]
[1750904436319,5.5243161,145.72,145.69,0.02]
[1750904437042,5.5243161,145.71,145.69,0.02]
[1750904439040,5.5243161,145.7,145.69,0.02]
[1750904440838,26.0,145.72,145.69,0.02]
[1750904441039,5.5243161,145.71,145.69,0.02]
[1750904442830,5.5243161,145.7,145.69,0.02]
[1750904444354,31.5243161,145.7,145.69,0.02]
[1750904444839,26.0,145.71,145.69,0.02]
[1750904445144,5.5243161,145.7,145.69,0.02]
[1750904446546,31.5243161,145.7,145.69,0.02]
[1750904461665,36.63915568,145.7,145.69,0.02]
[1750904462254,17.50257366,145.7,145.69,0.02]
[1750904462456,10.63915568,145.7,145.69,0.02]
[1750904463073,17.7868968,145.7,145.69,0.02]
[1750904463281,12.67205722,145.7,145.69,0.02]
[1750904464680,5.5243161,145.7,145.69,0.02]
[1750904465059,5.80863924,145.7,145.69,0.02]
[1750904466563,5.5243161,145.73,145.69,0.02]
[1750904466771,9.15437223,145.75,145.69,0.02]
[1750904466772,5.5243161,145.71,145.69,0.02]
[1750904467088,5.5243161,145.7,145.69,0.02]
[1750904472386,152.0243161,145.7,145.69,0.02]
[1750904472585,157.13908209,145.7,145.69,0.02]
[1750904474892,26.0,145.66,145.65,0.02]
[1750904475073,31.5243161,145.66,145.65,0.02]
[1750904477271,5.10657963,145.69,145.65,5.5443161]
[1750904477599,5.10657963,145.69,145.65,0.02]
[1750904477600,5.5243161,145.69,145.65,0.02]
[1750904477776,5.5243161,145.68,145.65,0.02]
[1750904478172,6.32,145.71,145.67,5.5243161]
[1750904478383,5.5243161,145.72,145.68,5.5243161]
[1750904478692,31.5243161,145.71,145.66,24.17396496]
[1750904478891,5.5243161,145.7,145.65,36.7882]
[1750904479098,5.5243161,145.7,145.65,42.3125161]
[1750904479267,5.5243161,145.7,145.66,5.5243161]
[1750904479471,5.5243161,145.7,145.65,49.17788]
[1750904479670,5.5243161,145.69,145.65,49.17788]
[1750904480283,5.5243161,145.7,145.65,49.17788]
[1750904481397,5.5243161,145.69,145.65,49.17788]
[1750904481581,5.5243161,145.69,145.65,43.6535639]
[1750904481780,5.5243161,145.68,145.65,36.7882]
[1750904482101,5.5243161,145.69,145.65,43.65396728]
[1750904482396,31.5243161,145.69,145.65,43.65396728]
[1750904483003,26.0,145.69,145.65,49.17828338]
[1750904483184,26.0,145.69,145.66,5.5243161]
[1750904483384,5.5243161,145.71,145.66,12.38931555]
[1750904483593,26.0,145.71,145.68,5.5243161]
[1750904484503,26.0,145.71,145.68,12.3885393]
[1750904484810,26.0,145.72,145.69,5.5243161]
[1750904485179,26.0,145.72,145.69,34.0843161]
[1750904485689,10.68360914,145.74,145.69,34.0843161]
[1750904486906,10.68360914,145.74,145.69,40.9478089]
[1750904487106,5.5243161,145.73,145.69,40.9478089]
[1750904487285,5.5243161,145.73,145.69,35.4234928]
[1750904487596,5.5243161,145.72,145.69,35.4234928]
[1750904487976,5.5243161,145.72,145.69,28.56]
[1750904488376,5.5243161,145.71,145.69,28.56]
[1750904489494,5.5243161,145.7,145.69,28.56]
[1750904489713,5.5243161,145.71,145.69,28.56]
[1750904490186,5.5243161,145.7,145.67,6.8647037]
[1750904490507,5.5243161,145.7,145.66,35.40519579]
[1750904490682,31.5243161,145.7,145.66,35.40519579]
[1750904492909,31.5243161,145.7,145.66,6.86519579]
[1750904493107,5.5243161,145.68,145.65,8.2282]
[1750904495318,5.5243161,145.69,145.65,20.61818384]
[1750904496005,31.5243161,145.7,145.65,20.61818384]
[1750904496188,26.0,145.7,145.66,5.5243161]
[1750904496382,5.10933585,145.71,145.67,5.5243161]
[1750904496589,152.0243161,145.72,145.67,34.0643161]
[1750904496590,146.5,145.72,145.67,34.0643161]
[1750904496812,152.0243161,145.72,145.67,34.0643161]
[1750904497109,5.5243161,145.71,145.67,40.92872054]
[1750904497812,5.5243161,145.71,145.67,35.40440444]
[1750904497988,5.5243161,145.7,145.67,35.40440444]
[1750904498917,5.5243161,145.7,145.67,28.54]
[1750904499095,5.5243161,145.69,145.66,6.86519397]
[1750904500623,5.5243161,145.69,145.65,62.28349621]
[1750904500917,5.5243161,145.69,145.65,36.7682]
[1750904501111,5.5243161,145.66,145.65,0.02]
[1750904501694,5.5243161,145.67,145.65,0.02]
[1750904502826,5.5243161,145.69,145.65,28.56]
[1750904503002,10.63927148,145.69,145.65,28.56]
[1750904503403,5.5243161,145.68,145.65,28.56]
[1750904503612,31.5243161,145.68,145.65,28.56]
[1750904506019,31.5243161,145.68,145.65,35.42571989]
[1750904507113,26.0,145.68,145.65,35.42571989]
[1750904507310,5.5243161,145.68,145.65,35.42571989]
[1750904507516,31.5243161,145.68,145.65,35.42571989]
[1750904510504,5.5243161,145.71,145.65,35.42571989]
[1750904510716,5.5243161,145.7,145.66,24.17396496]
[1750904511029,5.10394292,145.71,145.68,5.5243161]
[1750904511224,31.5243161,145.73,145.68,34.0643161]
[1750904512224,5.5243161,145.72,145.68,40.92845792]
[1750904513329,26.0,145.73,145.69,6.86377013]
[1750904513530,0.04,145.74,145.71,5.5243161]
[1750904513834,0.04,145.74,145.71,34.0443161]
[1750904515326,0.04,145.74,145.71,40.90701946]
[1750904515703,0.04,145.74,145.72,5.5243161]
[1750904516115,0.04,145.74,145.73,28.52]
[1750904516828,0.04,145.74,145.73,60.62852653]
[1750904517414,0.04,145.74,145.73,67.4905316]
[1750904523337,0.04,145.74,145.73,67.77485474]
[1750904525932,0.04,145.77,145.76,18.64964886]
[1750904526123,0.04,145.77,145.76,59.0265019]
[1750904526531,0.04,145.78,145.77,25.79409411]
[1750904527942,0.04,145.78,145.77,31.31841021]
[1750904528134,0.04,145.78,145.77,31.17624864]
[1750904530117,0.04,145.78,145.77,31.46057178]
[1750904530531,0.04,145.82,145.79,44.933972]
[1750904530730,0.04,145.82,145.8,34.16647767]
[1750904531629,0.04,145.82,145.8,59.95916023]
[1750904533526,0.04,145.82,145.8,52.67396496]
[1750904533742,0.04,145.82,145.8,59.53267552]
[1750904535229,5.5643161,145.82,145.79,28.5]
[1750904535421,5.5643161,145.81,145.77,24.17396496]
[1750904535747,5.5243161,145.78,145.76,28.5]
[1750904537430,5.5243161,145.77,145.76,28.5]
[1750904538732,0.04,145.81,145.76,28.62216157]
[1750904539052,0.04,145.81,145.77,28.48]
[1750904539053,5.5243161,145.78,145.77,28.48]
[1750904539552,5.5243161,145.78,145.75,28.48]
[1750904540045,5.5243161,145.77,145.75,28.48]
[1750904541235,5.5243161,145.76,145.75,28.48]
[1750904541450,5.5243161,145.76,145.73,25.5116051]
[1750904541647,5.5243161,145.76,145.74,28.48]
[1750904542032,5.5243161,145.75,145.73,28.48]
[1750904542226,5.5243161,145.74,145.73,28.48]
[1750904542636,5.5243161,145.74,145.71,18.64964886]
[1750904542956,5.5243161,145.74,145.7,25.51299662]
[1750904542957,5.5243161,145.73,145.69,25.51341992]
[1750904543253,5.5243161,145.73,145.71,28.48]
[1750904543642,26.0,145.78,145.71,28.48]
[1750904543643,5.5243161,145.74,145.71,28.48]
[1750904543833,26.0,145.78,145.71,28.48]
[1750904544034,5.5243161,145.75,145.71,28.48]
[1750904544752,5.5243161,145.74,145.71,28.48]